Cogmind - Beta 15 @@@ ROGUE MODE // 2025.07.21 @ 21:48:27 Player: jumpy Result: Destroyed by Y-45 Defender with Heavy Assault Rifle Performance ------------- Evolutions (1) 500 Regions Visited (3) 600 Robots Destroyed (20) 100 Value Destroyed (344) 344 Prototype IDs (2) 40 Alien Tech Used (0) 0 Bonus (0) 0 TOTAL SCORE: 1584 Bonus ------- None Cogmind --------- Core Integrity 0/400 Matter 124/300 Energy 100/100 System Corruption 0% Temperature Cool (0) Movement Core (100) Ox1 Location -9/Storage Parts ------- > --- POWER (1) -------- (None) > --- PROPULSION (3) --- (None) > --- UTILITY (3) ------ Small Storage Unit > --- WEAPON (2) ------- (None) > --- INVENTORY (8) ---- Heavy Ion Engine Improved Hover Unit Improved Hover Unit Improved Hover Unit Improved Hover Unit Improved Terrain Scanner Improved Assault Rifle Improved Assault Rifle Peak State ------------ > --- POWER ------------ Heavy Ion Engine > --- PROPULSION ------- Light Treads Light Treads Light Treads > --- UTILITY ---------- Small Storage Unit Seismic Detector Light Armor Plating > --- WEAPON ----------- Improved Assault Rifle Improved Assault Rifle > --- INVENTORY -------- Light Ion Engine Compact Wheel Compact Wheel Improved Terrain Scanner Improved Assault Rifle Grenade Launcher Maul [Rating: 16] Favorites ----------- Power Ion Engine Engine Ion Engine Propulsion Light Treads Treads Light Treads Utility Small Storage Unit Device Seismic Detector Storage Small Storage Unit Protection Light Armor Plating Weapon Assault Rifle Ballistic Gun Assault Rifle Launcher Grenade Launcher Build | -11 -10 -9 -9 ------- Run | Yrd Mat Mat Sto Slots Evolved 2 | . . 2 . Power . | . . . . Propulsion 1 | . . 1 . Utility 1 | . . 1 . Weapon . | . . . . Parts Attached 18 | 8 . 9 1 Power 4 | 2 . 2 . Engine 4 | 2 . 2 . Core . | . . . . Reactor . | . . . . Propulsion 3 | 2 . 1 . Treads 3 | 2 . 1 . Leg . | . . . . Wheel . | . . . . Hover . | . . . . Flight . | . . . . Utility 4 | 2 . 2 . Device 2 | 1 . 1 . Storage 1 | 1 . . . Processor . | . . . . Hackware . | . . . . Protection 1 | . . 1 . Artifact . | . . . . Weapon 7 | 2 . 4 1 Energy Gun . | . . . . Energy Cannon . | . . . . Ballistic Gun 6 | 2 . 4 . Ballistic Cannon . | . . . . Launcher 1 | . . . 1 Special Weapon . | . . . . Impact Weapon . | . . . . Slashing Weapon . | . . . . Piercing Weapon . | . . . . Special Melee Weapon . | . . . . Unidentified Prototypes 2 | . . 2 . Parts Lost 8 | . . 1 7 Power 1 | . . . 1 Propulsion 3 | . . . 3 Utility 2 | . . 1 1 Weapon 2 | . . . 2 Highest Loss Streak 7 | . . 1 7 To Critical Strikes . | . . . . Average Backups 6 | 3 7 7 8 Power 1 | . 1 1 1 Propulsion 2 | 1 2 2 3 Utility 1 | . 2 1 1 Weapon 2 | . 2 3 2 Tool/Special . | . . . . Unused Backups 13 | . . 3 10 Power 1 | . . . 1 Propulsion 6 | . . . 6 Utility 1 | . . . 1 Weapon 5 | . . 3 2 Tool/Special . | . . . . Average Slot Usage (%) 78 | . 100 83 52 Engine 10 | . 14 11 6 Treads 23 | . 28 26 15 Device 7 | . 14 9 . Storage 11 | . 14 11 11 Protection 3 | . . 4 5 Ballistic Gun 21 | . 28 22 13 Peak Build Rating 16 | 7 8 16 15 Average Rating 9 | 5 7 11 9 On Entrance 7 | . 7 8 15 Naked Turns . | . . . . Heaviest Build 22 | 15 15 22 22 Greatest Support 60 | 40 40 60 60 Greatest Overweight (x) 5 | . . . 5 Average Overweight (x) . | . . . . Largest Inventory Capacity 8 | 8 8 8 8 Average Capacity 7 | 7 8 8 8 Most Carried 8 | 7 8 8 8 Average Carried 6 | 3 7 7 7 Final Capacity 8 | 8 8 8 8 Final Carried 8 | 7 8 8 8 Class Distribution -------------------- 100% | Mutant Dominant Class ---------------- Mutant | -10/Materials Mutant | -9/Materials Mutant | -9/Storage Resources | -11 -10 -9 -9 ----------- Run | Yrd Mat Mat Sto Matter Collected 561 | 249 20 279 13 Remotely . | . . . . Salvage Created 583 | 106 20 425 32 Parts 46 | 8 4 27 7 Haulers Intercepted 2 | . . 2 . Recyclers Shooed . | . . . . Parts Field Recycled . | . . . . Retrieved Matter . | . . . . Parts Self-Destructed . | . . . . Prevented . | . . . . Kills | -11 -10 -9 -9 ------- Run | Yrd Mat Mat Sto Combat Hostiles Destroyed 9 | . 2 5 2 Guns 7 | . 2 5 . AOE 2 | . . . 2 Classes Destroyed 9 | 2 1 5 1 Worker 1 | . . 1 . Builder 2 | . . 1 1 Tunneler 3 | 3 . . . Hauler 2 | . . 2 . Recycler 2 | 1 . 1 . Operator 1 | . . . 1 Swarmer 2 | . 2 . . Grunt 5 | . . 3 2 Sentry 2 | . . 2 . Best Kill Streak 4 | 1 2 3 4 Combat Bots Only 2 | . 2 2 2 Max Kills in Single Turn 2 | 1 1 1 2 Gunslinging . | . . . . Exploded 1 | . . . 1 Melee . | . . . . Uniques/NPCs Destroyed . | . . . . Combat | -11 -10 -9 -9 -------- Run | Yrd Mat Mat Sto Hostile Shots Fired 170 | . 17 26 127 Missed 49 | . 7 5 37 Hits 121 | . 10 21 90 Projectile 121 | . 10 21 90 Critical Strikes 1 | . . . 1 Damage Taken 1604 | . 83 294 1227 Core 419 | . 17 14 388 Absorbed by Shields . | . . . . Core Remaining (%) 96 | 100 93 . . Volleys Fired 62 | 12 6 39 5 Largest 2 | 2 2 2 1 Hottest 46 | 40 40 46 30 Shots Fired 119 | 24 12 78 5 Gun 114 | 24 12 78 . Cannon . | . . . . Launcher 5 | . . . 5 Special . | . . . . Kinetic 114 | 24 12 78 . Thermal . | . . . . Explosive 5 | . . . 5 Electromagnetic . | . . . . Robot Hit Streak 10 | 5 2 10 3 Robot Miss Streak 4 | 1 4 4 1 Penetration Max . | . . . . Secondary Targets 1 | . 1 . . Max Gunslinging Chain 1 | . 1 . . Shots Hit Robots 81 | 17 4 56 4 Core Hits 39 | 5 2 19 13 Critical Kills . | . . . . Critical Parts Destroyed . | . . . . Critical Strikes . | . . . . Melee Attacks . | . . . . Impact . | . . . . Slashing . | . . . . Piercing . | . . . . Sneak Attacks . | . . . . Combat Hostiles . | . . . . Follow-up Attacks . | . . . . Damage Inflicted 1495 | 217 62 823 393 Guns 1091 | 215 62 814 . Cannons . | . . . . Explosions 373 | . . . 373 Melee . | . . . . Ramming 31 | 2 . 9 20 Kinetic 1091 | 215 62 814 . Thermal . | . . . . Explosive 373 | . . . 373 Electromagnetic . | . . . . Impact . | . . . . Slashing . | . . . . Piercing . | . . . . Highest Corruption . | . . . . Average Corruption . | . . . . Corruption Purged . | . . . . Corruption Blocked . | . . . . Overload Shots . | . . . . Overflow Damage . | . . . . Projectiles . | . . . . Explosions . | . . . . Melee . | . . . . Knockbacks . | . . . . Impact . | . . . . Kinetic . | . . . . Secondary . | . . . . Self-Inflicted Damage 29 | . . . 29 Shots 3 | . . . 3 Rammed 8 | 1 . 2 5 Targets Rammed 8 | 1 . 2 5 Kicked . | . . . . Crushed . | . . . . Highest Temperature 11 | . . 5 11 Average Temperature 4 | . . 2 6 Received Heat Transfer 591 | . 12 126 453 Siege Activations . | . . . . Martial Activations . | . . . . Shielding Activations . | . . . . Robots Disrupted . | . . . . Combat Hostiles . | . . . . Robots Corrupted . | . . . . Combat Hostiles . | . . . . Parts Fried . | . . . . Impact Corruptions . | . . . . Robots Melted . | . . . . Combat Hostiles . | . . . . Parts Melted . | . . . . Heat Transferred . | . . . . Parts Sabotaged . | . . . . Parts Stolen . | . . . . Parts Stripped . | . . . . Power Chain Reactions . | . . . . Alert | -11 -10 -9 -9 ------- Run | Yrd Mat Mat Sto Maximum Alert Level . | . . . . Low Security (%) 100 | 100 100 100 100 Level 1 . | . . . . Level 2 . | . . . . Level 3 . | . . . . Level 4 . | . . . . Level 5 . | . . . . High Security . | . . . . Max Security . | . . . . Peak Influence 86 | 5 50 45 86 Initial 7 | . . . 7 Average 10 | . 11 12 14 Influence Increases 348 | 20 57 163 108 Destroy 0b10 Robot/C 180 | . 40 100 40 Destroy 0b10 Robot/NC 55 | 20 . 25 10 Destroy Leader 54 | . 10 34 10 Successful Hack 18 | . 7 4 7 Destroy Structure 26 | . . . 26 Lose Combat Pursuer 15 | . . . 15 Influence Decreases 347 | 20 57 145 125 Entered New Map 11 | . . . 11 Time Decay 286 | 20 57 135 74 Lost Part 50 | . . 10 40 Squads Dispatched 5 | . 3 1 1 Investigation 2 | . 1 1 . Extermination . | . . . . Reinforcement 3 | . 2 . 1 Assault . | . . . . Garrison . | . . . . Intercept . | . . . . Searches Triggered . | . . . . Construction Impeded . | . . . . Haulers Reinforced . | . . . . Active Scanning Responses . | . . . . Cargo Convoy Interrupts . | . . . . Stealth | -11 -10 -9 -9 --------- Run | Yrd Mat Mat Sto Distress Signals 3 | . 2 1 . Communications Jammed . | . . . . Distress Signals . | . . . . Times Spotted 30 | . 8 9 13 Peak Tracking Total 7 | . 4 3 7 Tactical Retreats 1 | . . . 1 Traps | -11 -10 -9 -9 ------- Run | Yrd Mat Mat Sto Traps Triggered 4 | . 1 2 1 Indirectly . | . . . . Trap Hack Attempts . | . . . . Triggered . | . . . . Disarmed . | . . . . Reprogrammed . | . . . . Reused . | . . . . Traps Extracted . | . . . . Installed . | . . . . Triggered . | . . . . Machines | -11 -10 -9 -9 ---------- Run | Yrd Mat Mat Sto Machines Disabled . | . . . . Max in Single Turn . | . . . . Machines Repaired . | . . . . Machines Dismantled . | . . . . Machines Sabotaged . | . . . . Overloaded Fab Kills . | . . . . Hacking | -11 -10 -9 -9 --------- Run | Yrd Mat Mat Sto Machines Accessed 3 | . 1 1 1 Terminals 3 | . 1 1 1 Fabricators . | . . . . Repair Stations . | . . . . Recycling Units . | . . . . Scanalyzers . | . . . . Garrison Access . | . . . . Total Hacks 7 | . 4 1 2 Successful 5 | . 3 1 1 Failed 2 | . 1 . 1 Catastrophic . | . . . . Database Lockouts . | . . . . Manual . | . . . . Terminals 7 | . 4 1 2 Fabricators . | . . . . Repair Stations . | . . . . Recycling Units . | . . . . Scanalyzers . | . . . . Garrison Access . | . . . . Terminal Hacks 5 | . 3 1 1 Open Door 1 | . . . 1 Locate Traps 1 | . . 1 . Transport Status 1 | . 1 . . Registered Components 1 | . 1 . . Zone Layout 1 | . 1 . . Fabricator Hacks . | . . . . Repair Station Hacks . | . . . . Recycling Unit Hacks . | . . . . Scanalyzer . | . . . . Garrison Access Hacks . | . . . . Unauthorized Hacks . | . . . . Terminals . | . . . . Fabricators . | . . . . Repair Stations . | . . . . Recycling Units . | . . . . Scanalyzers . | . . . . Garrison Access . | . . . . Data Cores Recovered . | . . . . Used . | . . . . Hacking Detections 1 | . . . 1 Full Trace Events . | . . . . Feedback Events . | . . . . Feedback Blocked . | . . . . Robot Schematics Acquired . | . . . . Robots Built . | . . . . Authchips . | . . . . Time . | . . . . Total Robot Build Rating . | . . . . Part Schematics Acquired . | . . . . Parts Built . | . . . . Authchips . | . . . . Time . | . . . . Total Part Build Rating . | . . . . Parts Repaired . | . . . . Time . | . . . . Parts Recycled . | . . . . Recycled Matter . | . . . . Retrieved Matter . | . . . . Retrieved Components . | . . . . Parts Scanalyzed . | . . . . Part Schematics Acquired . | . . . . Parts Damaged . | . . . . Bothacking | -11 -10 -9 -9 ------------ Run | Yrd Mat Mat Sto Used RIF Installer . | . . . . Robots Hacked . | . . . . Non-combat . | . . . . Combat . | . . . . Robot Hacks Applied . | . . . . Relay Couplers Released . | . . . . Fabnet Peak Effective % . | . . . . Robots Rewired . | . . . . Allies Hacked . | . . . . Hacks Repelled . | . . . . Allies | -11 -10 -9 -9 -------- Run | Yrd Mat Mat Sto Total Allies . | . . . . Largest Group . | . . . . Highest-Rated Group . | . . . . Highest-Rated Ally . | . . . . Total Orders . | . . . . Ally Attacks . | . . . . Total Damage . | . . . . Kills . | . . . . Allies Corrupted . | . . . . Allies Melted . | . . . . Intel | -11 -10 -9 -9 ------- Run | Yrd Mat Mat Sto Active Infowar (turns) 667 | 89 227 351 . Seismic 667 | 89 227 351 . Robot Analysis Total . | . . . . Derelict Logs Recovered . | . . . . Drone Launches . | . . . . Drone Recoveries . | . . . . Exploration | -11 -10 -9 -9 ------------- Run | Yrd Mat Mat Sto Turns Passed 1118 | 203 227 434 254 Spaces Moved 580 | 99 130 180 171 Core 111 | 9 . . 102 Treads 469 | 90 130 180 69 Legs . | . . . . Wheels . | . . . . Hover . | . . . . Flight . | . . . . Fastest Speed 50 | 50 160 160 100 Average Speed 150 | 150 160 160 133 Slowest Speed 300 | 160 160 160 300 Overloaded Moves . | . . . . Propulsion Burnouts . | . . . . Robots Hopped . | . . . . Potential Cave-ins 2 | . . . 2 Cave-ins Triggered . | . . . . Exploration Rate (%) 26 | 7 37 24 39 Regions Visited 3 Branch Regions 1 Pre-discovered Areas . | . . . . Known Exits Taken . | . . . . Unknown Exits Taken 3 | 1 1 1 . Scrap Searched . | . . . . Spaces Dug . | . . . . Terrain Destroyed 27 | . . . 27 Melee . | . . . . Projectile . | . . . . AOE 27 | . . . 27 Terrain Rammed . | . . . . Walls Destroyed . | . . . . Machines Disabled . | . . . . Actions | -11 -10 -9 -9 --------- Run | Yrd Mat Mat Sto Total 703 | 125 137 251 190 Wait 9 | . 1 8 . Move 577 | 98 129 179 171 Hop . | . . . . Pick Up 15 | 6 1 4 4 Fast Attach 10 | 7 . 3 . Attach 1 | . . 1 . Detach . | . . . . Swap 8 | 1 . 6 1 Drop 13 | . . 9 4 Fire 62 | 12 6 39 5 Melee . | . . . . Ram . | . . . . Kick . | . . . . Crush 8 | 1 . 2 5 Escape Stasis . | . . . . Rewire . | . . . . Trap . | . . . . Miscellaneous . | . . . . Route ------- -11/Scrapyard -10/Materials (discovered 2 exits: *Mat / [*Min]) -9/Materials -9/Storage (discovered 1 exit: [*Mat]) History --------- Turn | Location | Event 17 | -11/Scrapyard | Discovered new exit (range 15) 204 | -11/Scrapyard | Entered Materials 205 | -10/Materials | Met a group of wandering Federalists 300 | -10/Materials | Build established: Mutant 337 | -10/Materials | Discovered new exit (range 8) 415 | -10/Materials | Discovered new exit (range 11) 431 | -10/Materials | Entered another Materials area 431 | -9/Materials | Evolved 2 slots: Propulsion x1, Utility x1 805 | -9/Materials | Discovered new exit (range 13) 865 | -9/Materials | Entered Storage 1039 | -9/Storage | Core integrity fell below 50% 1069 | -9/Storage | Lost 7 parts (1p3n1u2w) 1086 | -9/Storage | Core integrity fell below 20% 1118 | -9/Storage | Discovered new exit (range 16) 1119 | -9/Storage | Destroyed by Y-45 Defender with Heavy Assault Rifle Last Messages --------------- 01016_ R-06 Scavenger collects Lgt. Ion Engine. 01018_ R-06 Scavenger collects Sml. Laser. 01022_ R-06 Scavenger collects Lgt. Ion Engine. 01022_ U-05 Engineer lays Concrete. 01023_ U-05 Engineer builds a Wall. 01026_ R-06 Scavenger collects Ion Engine. 01027_ U-05 Engineer builds a Wall. 01031_ U-05 Engineer lays Concrete. 01032_ U-05 Engineer builds a Wall. 01035_ U-05 Engineer lays Concrete. 01036_ Y-45 Defender destroyed. 01037_ U-05 Engineer lays Concrete. 01037_ Acquired 13 matter. 01037_ U-05 Engineer lays Concrete. 01038_ Imp. Assault Rifle destroyed. 01038_ U-05 Engineer lays Concrete. 01038_ U-05 Engineer builds a Door. 01039_ U-05 Engineer lays Concrete. 01055_ K-01 Serf collects debris. 01118_ EXIT=FOUND Map ----- +----------------------------------------------------+ | ???? ######/####### #????????????? | | ?????#+#??# ###??????????? | | ?????# #??# ???????? | | ?##### #??# ???????? | | # # #### ????????? | | # + ############????????? | | # # ####???????????????????? | | # # ###########????????????? | | # ?+ / #????????????? | | # ?#### # """"" #????????????? | | # ?????# # "??????#????????????? | | # ?????# # "????? #????????????? | | # ??????###### ""???? #????????????? | | ##???????????# "???? #????????????? | | ?????????????# """"" #????????????? | | ?????????????# #????????????? | | ??################/##+########??????? | | ??? + ??? | | ??""""" # #??? | | ? """"" # #??? | | # """"" # ###############+###+???? | | # + #??????????????????????? | | # """"" # #??????????????????????? | | ??""""" # #??????????????????????? | | ??""""" # #??????????????????????? | | ?? # @#??????????????????????? | | ?######### #??????????????????????? | | ????????# Y ??????????????????????? | | ????????# #?????????????????????? | | ????????# +?????????????????????? | | ????????# #?????????????????????? | | ????????# #?????????????????????? | | ????????## g##?????????????????????? | | ?????????# #??????????????????????? | | ?????????# #??????????????????????? | | ?????????# #??????????????????????? | | ?????????# +??????????????????????? | | ?????????# ???????????????????????? | | ?????????# ???????????????????????? | | ?????????# ???????????????????????? | | ?????????? < ???????????????????????? | | ????????????????????????????????????? | | ????????????????????????????????????? | | ????????????????????????????????????? | | ????????????????????????????????????? | | ????????????????????????????????????? | | ????????????????????????????????????? | | ????????????????????????????????????? | | | | | +----------------------------------------------------+ Best States ------------- Heat Dissipation 28 Energy Generation 14 Energy Capacity 280 Matter Stores 202 Matter Capacity 300 Sight Range 16 Terrain Scan Density 10 Armor Coverage 150 Evasion (%) 40 Recoil Reduction 3 Item Schematics ----------------- None Robot Schematics ------------------ None Fabricated ------------ Nothing Repaired ---------- Nothing Alien Tech Used ----------------- None Achievements -------------- None Challenges ------------ None Game ------ Seed IntegratedStealthMantle Manual? 0 Play Time 00:07:16 Cumulative 179.9 hours Start 2025.07.21 @ 21:42:42 End 2025.07.21 @ 21:48:27 Sessions 1 Manual Loads 0 Difficulty Rogue Special Mode None Game No. 435 Rogue 435 Adventurer 0 Explorer 0 Win Type - Total 7 Types 5/0/1/1/0/0/0/0/0/0 Lore% 73 Gallery% 65 Achievement% 51 Wizard Run 0 Options --------- Layout 0 ASCII 0 Keyboard 0 Movement Numpad Keybinds 0 Fullscreen 2 Font 18/Terminus Map View 76x50 Zoom Use 0% Tactical HUD 1 Map Filters NONE Filters SATURATION(100) Steam 1 RUN: de41d2a3-2f53-42c3-a444-6c01dccd6ef3